Cogmind - Beta 13 @@@ ROGUE MODE // 2024.07.08 @ 08:53:12 Player: Dosh Result: Destroyed by G-34 Mercenary with Small Laser Performance ------------- Evolutions (0) 0 Regions Visited (2) 400 Robots Destroyed (36) 180 Value Destroyed (887) 887 Prototype IDs (3) 60 Alien Tech Used (0) 0 Bonus (0) 0 TOTAL SCORE: 1527 Bonus ------- None Cogmind --------- Core Integrity 0/250 Matter 280/300 Energy 248/250 System Corruption 0% Temperature Cool (12) Movement Walking (260) Ox2 Location -10/Mines Parts ------- > --- POWER (1) -------- Ion Engine > --- PROPULSION (2) --- Light Treads Aluminum Leg > --- UTILITY (2) ------ Large Storage Unit > --- WEAPON (2) ------- Light Assault Rifle Light Assault Rifle > --- INVENTORY (15) --- Aluminum Leg Huge Storage Unit Transport Network Coupler Core Shielding Hacking Suite Hacking Suite Hacking Suite Light Assault Rifle Datajack Peak State ------------ > --- POWER ------------ Light Nuclear Core > --- PROPULSION ------- Aluminum Leg Aluminum Leg > --- UTILITY ---------- Large Storage Unit Core Shielding > --- WEAPON ----------- Light Assault Rifle Light Assault Rifle > --- INVENTORY -------- Huge Storage Unit Transport Network Coupler Light Armor Plating Hacking Suite Hacking Suite Light Assault Rifle Datajack [Rating: 10] Favorites ----------- Power Light Nuclear Core Engine Light Ion Engine Power Core Light Nuclear Core Propulsion Aluminum Leg Treads Light Treads Leg Aluminum Leg Utility Large Storage Unit Storage Large Storage Unit Protection Core Shielding Weapon Light Assault Rifle Ballistic Gun Light Assault Rifle Build | -11 -10 -10 ------- Run | Yrd Mat Min Slots Evolved . | . . . Power . | . . . Propulsion . | . . . Utility . | . . . Weapon . | . . . Parts Attached 21 | 6 7 8 Power 4 | 1 2 1 Engine 3 | 1 1 1 Core 1 | . 1 . Reactor . | . . . Propulsion 7 | 2 2 3 Treads 3 | 2 . 1 Leg 4 | . 2 2 Wheel . | . . . Hover . | . . . Flight . | . . . Utility 4 | 1 2 1 Device . | . . . Storage 2 | 1 1 . Processor . | . . . Hackware . | . . . Protection 2 | . 1 1 Artifact . | . . . Weapon 6 | 2 1 3 Energy Gun . | . . . Energy Cannon . | . . . Ballistic Gun 6 | 2 1 3 Ballistic Cannon . | . . . Launcher . | . . . Special Weapon . | . . . Impact Weapon . | . . . Slashing Weapon . | . . . Piercing Weapon . | . . . Special Melee Weapon . | . . . Unidentified Prototypes . | . . . Parts Lost 10 | . 4 6 Power 3 | . 2 1 Propulsion 4 | . 2 2 Utility 1 | . . 1 Weapon 2 | . . 2 Highest Loss Streak 3 | . 3 3 To Critical Strikes . | . . . Average Slot Usage (%) 94 | . 98 89 Engine 3 | . 4 2 Core 6 | . 9 2 Treads 10 | . 9 11 Leg 17 | . 18 16 Storage 14 | . 14 14 Protection 13 | . 13 13 Ballistic Gun 28 | . 28 28 Naked Turns . | . . . Heaviest Build 30 | 10 30 30 Greatest Support 40 | 40 40 20 Greatest Overweight (x) 7 | . 7 2 Average Overweight (x) . | . . 1 Largest Inventory Capacity 15 | 8 15 15 Average Capacity 14 | 6 14 15 Most Carried 11 | 1 10 11 Average Carried 7 | . 6 9 Final Capacity 15 | 8 15 15 Final Carried 10 | 1 10 9 Class Distribution -------------------- 55% | Mutant 44% | Scavenger-Mutant Dominant Class ---------------- Scavenger-Mutant | -10/Materials Mutant | -10/Mines Resources | -11 -10 -10 ----------- Run | Yrd Mat Min Matter Collected 666 | 234 287 145 Remotely . | . . . Salvage Created 1190 | . 656 534 Parts 81 | . 48 33 Haulers Intercepted 2 | . 2 . Recyclers Shooed 2 | . 1 1 Parts Field Recycled . | . . . Retrieved Matter . | . . . Parts Self-Destructed . | . . . Prevented . | . . . Kills | -11 -10 -10 ------- Run | Yrd Mat Min Combat Hostiles Destroyed 30 | . 15 15 Guns 30 | . 15 15 Classes Destroyed 5 | . 5 . Hauler 2 | . 2 . Operator 3 | . 3 . Watcher 1 | . 1 . Swarmer 10 | . 6 4 Grunt 20 | . 9 11 Best Kill Streak 3 | . 3 3 Combat Bots Only 3 | . 3 3 Max Kills in Single Turn 1 | . 1 1 Gunslinging . | . . . Exploded . | . . . Melee . | . . . Uniques/NPCs Destroyed . | . . . Combat | -11 -10 -10 -------- Run | Yrd Mat Min Hostile Shots Fired 154 | . 67 87 Missed 23 | . 7 16 Damage Taken 1383 | . 643 740 Core 258 | . 123 135 Absorbed by Shields . | . . . Redirected to Shielding 44 | . 25 19 Core Remaining (%) 100 | 100 . . Volleys Fired 164 | . 104 60 Largest 2 | . 2 2 Hottest 40 | . 40 40 Shots Fired 326 | . 208 118 Gun 326 | . 208 118 Cannon . | . . . Launcher . | . . . Special . | . . . Kinetic 326 | . 208 118 Thermal . | . . . Explosive . | . . . Electromagnetic . | . . . Robot Hit Streak 14 | . 13 14 Robot Miss Streak 4 | . 4 4 Penetration Max . | . . . Secondary Targets 2 | . . 2 Max Gunslinging Chain 1 | . . 1 Shots Hit Robots 197 | . 123 74 Core Hits 89 | . 52 37 Critical Kills . | . . . Critical Parts Destroyed 1 | . . 1 Critical Strikes 1 | . . 1 Destroy 1 | . . 1 Melee Attacks . | . . . Impact . | . . . Slashing . | . . . Piercing . | . . . Sneak Attacks . | . . . Combat Hostiles . | . . . Follow-up Attacks . | . . . Damage Inflicted 1714 | . 1062 652 Guns 1644 | . 1008 636 Cannons . | . . . Explosions . | . . . Melee . | . . . Ramming 70 | . 54 16 Kinetic 1644 | . 1008 636 Thermal . | . . . Explosive . | . . . Electromagnetic . | . . . Impact . | . . . Slashing . | . . . Piercing . | . . . Highest Corruption . | . . . Average Corruption . | . . . Corruption Purged . | . . . Corruption Blocked . | . . . Overload Shots . | . . . Overflow Damage . | . . . Projectiles . | . . . Explosions . | . . . Melee . | . . . Knockbacks . | . . . Impact . | . . . Kinetic . | . . . Secondary . | . . . Self-Inflicted Damage . | . . . Shots . | . . . Rammed 2 | . 1 1 Targets Rammed 12 | . 7 5 Kicked 10 | . 6 4 Crushed . | . . . Highest Temperature 48 | . 34 48 Average Temperature 8 | . 6 10 Received Heat Transfer 573 | . 291 282 Siege Activations . | . . . Robots Corrupted . | . . . Combat Hostiles . | . . . Parts Fried . | . . . Impact Corruptions . | . . . Robots Melted . | . . . Combat Hostiles . | . . . Parts Melted . | . . . Heat Transferred . | . . . Parts Sabotaged . | . . . Parts Stolen . | . . . Parts Stripped . | . . . Power Chain Reactions . | . . . Alert | -11 -10 -10 ------- Run | Yrd Mat Min Peak Influence 240 | . 240 164 Initial 14 | . . 14 Average 58 | . 71 43 Maximum Alert Level 1 | . 1 . Low Security (%) 93 | 100 89 100 Level 1 6 | . 10 . Level 2 . | . . . Level 3 . | . . . Level 4 . | . . . Level 5 . | . . . High Security . | . . . Max Security . | . . . Squads Dispatched 6 | . 6 . Investigation 3 | . 3 . Extermination . | . . . Reinforcement 3 | . 3 . Assault . | . . . Garrison . | . . . Intercept . | . . . Searches Triggered . | . . . Construction Impeded . | . . . Haulers Reinforced . | . . . Active Scanning Responses . | . . . Cargo Convoy Interrupts . | . . . Stealth | -11 -10 -10 --------- Run | Yrd Mat Min Distress Signals 4 | . . 4 Communications Jammed . | . . . Distress Signals . | . . . Times Spotted 59 | . 41 18 Peak Tracking Total 4 | . 4 3 Tactical Retreats 1 | . . 1 Traps | -11 -10 -10 ------- Run | Yrd Mat Min Traps Triggered 2 | . 2 . Indirectly . | . . . Trap Hack Attempts . | . . . Triggered . | . . . Disarmed . | . . . Reprogrammed . | . . . Reused . | . . . Traps Extracted . | . . . Installed . | . . . Triggered . | . . . Machines | -11 -10 -10 ---------- Run | Yrd Mat Min Machines Disabled . | . . . Max in Single Turn . | . . . Machines Repaired . | . . . Machines Dismantled . | . . . Machines Sabotaged . | . . . Overloaded Fab Kills . | . . . Hacking | -11 -10 -10 --------- Run | Yrd Mat Min Machines Accessed 7 | . 6 1 Terminals 6 | . 5 1 Fabricators . | . . . Repair Stations . | . . . Recycling Units 1 | . 1 . Scanalyzers . | . . . Garrison Access . | . . . Total Hacks 12 | . 11 1 Successful 7 | . 7 . Failed 5 | . 4 1 Catastrophic 1 | . 1 . Database Lockouts . | . . . Manual 8 | . 8 . Terminals 11 | . 10 1 Fabricators . | . . . Repair Stations . | . . . Recycling Units 1 | . 1 . Scanalyzers . | . . . Garrison Access . | . . . Terminal Hacks 5 | . 5 . Robot Analysis 2 | . 2 . Prototype ID Bank 1 | . 1 . Terminal Index 1 | . 1 . Recall Reinforcements 1 | . 1 . Fabricator Hacks . | . . . Repair Station Hacks . | . . . Recycling Unit Hacks . | . . . Scanalyzer . | . . . Garrison Access Hacks . | . . . Unauthorized Hacks 2 | . 2 . Terminals 1 | . 1 . Botnet 1 | . 1 . Fabricators . | . . . Repair Stations . | . . . Recycling Units 1 | . 1 . Tunnel 1 | . 1 . Scanalyzers . | . . . Garrison Access . | . . . Data Cores Recovered . | . . . Used . | . . . Hacking Detections 5 | . 4 1 Full Trace Events . | . . . Feedback Events . | . . . Feedback Blocked . | . . . Robot Schematics Acquired . | . . . Robots Built . | . . . Authchips . | . . . Time . | . . . Total Robot Build Rating . | . . . Part Schematics Acquired . | . . . Parts Built . | . . . Authchips . | . . . Time . | . . . Total Part Build Rating . | . . . Parts Repaired . | . . . Time . | . . . Parts Recycled . | . . . Recycled Matter . | . . . Retrieved Matter . | . . . Retrieved Components . | . . . Parts Scanalyzed . | . . . Part Schematics Acquired . | . . . Parts Damaged . | . . . Bothacking | -11 -10 -10 ------------ Run | Yrd Mat Min Used RIF Installer . | . . . Robots Hacked . | . . . Non-combat . | . . . Combat . | . . . Robot Hacks Applied . | . . . Relay Couplers Released . | . . . Fabnet Peak Effective % . | . . . Robots Rewired . | . . . Allies Hacked . | . . . Hacks Repelled . | . . . Allies | -11 -10 -10 -------- Run | Yrd Mat Min Total Allies . | . . . Largest Group . | . . . Highest-Rated Group . | . . . Highest-Rated Ally . | . . . Total Orders . | . . . Ally Attacks . | . . . Total Damage . | . . . Kills . | . . . Allies Corrupted . | . . . Allies Melted . | . . . Intel | -11 -10 -10 ------- Run | Yrd Mat Min Robot Analysis Total 2 | . 2 . Derelict Logs Recovered 1 | . . 1 Drone Launches . | . . . Drone Recoveries . | . . . Exploration | -11 -10 -10 ------------- Run | Yrd Mat Min Turns Passed 3353 | 62 1852 1439 Spaces Moved 1147 | 34 844 269 Core 2 | 1 1 . Treads 395 | 33 262 100 Legs 750 | . 581 169 Wheels . | . . . Hover . | . . . Flight . | . . . Fastest Speed 50 | 50 160 190 Average Speed 191 | 156 181 226 Slowest Speed 400 | 160 400 260 Overloaded Moves . | . . . Propulsion Burnouts . | . . . Robots Hopped . | . . . Cave-ins Triggered . | . . . Exploration Rate (%) 54 | 3 92 68 Regions Visited 2 Branch Regions 1 Pre-discovered Areas 1 | . 1 . Known Exits Taken . | . . . Unknown Exits Taken 2 | 1 1 . Scrap Searched 1 | . . 1 Spaces Dug . | . . . Terrain Destroyed . | . . . Melee . | . . . Projectile . | . . . AOE . | . . . Terrain Rammed . | . . . Walls Destroyed . | . . . Machines Disabled . | . . . Actions | -11 -10 -10 --------- Run | Yrd Mat Min Total 2031 | 40 992 999 Wait 677 | . 20 657 Move 1145 | 33 843 269 Hop . | . . . Pick Up 10 | 1 9 . Fast Attach 13 | 6 5 2 Attach 4 | . 1 3 Detach 1 | . 1 . Swap 4 | . 1 3 Drop 1 | . 1 . Fire 164 | . 104 60 Melee . | . . . Ram . | . . . Kick 10 | . 6 4 Crush 2 | . 1 1 Escape Stasis . | . . . Rewire . | . . . Trap . | . . . Miscellaneous . | . . . Route ------- -11/Scrapyard -10/Materials (discovered 4 exits: [*Mat x3] / *Min) -10/Mines (discovered 1 exit: [*Mat]) History --------- Turn | Location | Event 34 | -11/Scrapyard | Discovered new exit (range 15) 63 | -11/Scrapyard | Entered Materials 295 | -10/Materials | Discovered new exit (range 12) 315 | -10/Materials | Build established: Mutant 348 | -10/Materials | Discovered new exit (range 15) 723 | -10/Materials | Lost 3 parts (1p2n) 1035 | -10/Materials | Discovered new exit (range 16) 1229 | -10/Materials | Build established: Scavenger-Mutant 1332 | -10/Materials | Discovered new exit (range 8) 1915 | -10/Materials | Entered Mines 1917 | -10/Mines | Core integrity fell below 50% 2027 | -10/Mines | Discovered new exit (range 4) 2103 | -10/Mines | Learned Materials terminal intel 2152 | -10/Mines | Core integrity fell below 20% 2198 | -10/Mines | Lost 3 parts (1p1n1w) 2328 | -10/Mines | Excavation squad dispatched 2328 | -10/Mines | A large section of the Mines collapsed 2477 | -10/Mines | Build established: Mutant 2578 | -10/Mines | Excavation squad dispatched 2828 | -10/Mines | Excavation squad dispatched 3354 | -10/Mines | Destroyed by G-34 Mercenary with Small Laser Last Messages --------------- 03083_ Slammed into T-07 Excavator. 03084_ T-07 Excavator sends out distress signal. 03099_ G-34 Mercenary destroyed. 03102_ Acquired 10 matter. 03116_ Aluminum Leg destroyed. 03118_ G-47 Trooper destroyed. 03121_ Acquired 3 matter. 03128_ Acquired Aluminum Leg. 03132_ Acquired 10 matter. 03141_ Acquired Ion Engine. 03143_ Acquired 20 matter. 03169_ Connecting with Terminal... 03169_ Current location identified: Mines 03221_ G-34 Mercenary destroyed. 03228_ Acquired 6 matter. 03267_ Kicked K-01 Serf. 03325_ U-05 Engineer sends out distress signal. 03330_ Lgt. Armor Plating destroyed. 03331_ G-34 Mercenary destroyed. 03331_ Switching to secondary target: G-34 Mercenary. Map ----- +----------------------------------------------------+ | ## ##????????# #?## %! " *% |[!%=% #????? | | % ##???????# ##### %* ########* ##???? | | % #???????# "" !%! ##?????##! #???? | | ## =%! ### #??????# #??? | | ## ###### ### #######?## ##?????# #?? | | ?#### #????????# #????????###??????# #?? | | ????? #????????# #?????????????????## #?? | | ????? #????# ### #??????????????????####### ##?? | | ?????? #????# #?????????????????????????###??? | | ?????? #????##### #??????????????????????????????? | | ?????? #????????#%#??????????????????????????????? | | ???????#????????# #??????????????????????????????? | | ????????????????# #??????????????????????????????? | | ????????????????# #??????????????????????????????? | | ????????????????# #??????????????????????????????? | | ????????????????# #??????????????????????????????? | | ????????????????# #??????????????????????????????? | | ????????????????# #??????????????????????????????? | | ????????????????# ####???????????????????????????? | | ????????????????# #?????????????#??#??????????? | | ????????????????#### #??????????? # ??????????? | | ???????????????????# #??????#### =%[ ?????????? | | ???????????????????# #?????# gt ??????????? | | ???????????????????# #?#### #?????????????? | | ???????????????????# ### t #?????????????? | | ???????????????????# % @ #??????????????? | | ???????????????????##### #???????????????? | | ???????????????????????## ##???????????????? | | ????????????????????????## ##????????????????? | | ??????????????????????????# ##?????????????????? | | ???????????????????????????####??????????????????? | | ?????????????????????????????????????????????????? | | ?????????????????????????????????????????????????? | | | | | | | | | | | | | | | | | | | | | | | | | | | | | | | | | | | +----------------------------------------------------+ Best States ------------- Heat Dissipation 25 Energy Generation 14 Energy Capacity 250 Matter Stores 300 Matter Capacity 300 Sight Range 16 Terrain Scan Density 10 Armor Coverage 150 Core Shielding 20 Evasion (%) 40 Recoil Reduction 2 Item Schematics ----------------- None Robot Schematics ------------------ None Fabricated ------------ Nothing Alien Tech Used ----------------- None Achievements -------------- None Challenges ------------ None Game ------ Seed TrackerShieldModule Manual? 0 Play Time 00:10:56 Cumulative 428.2 hours Start 2024.07.07 @ 10:25:34 End 2024.07.08 @ 08:53:12 Sessions 2 Manual Loads 0 Difficulty Rogue Special Mode None Game No. 259 Rogue 259 Adventurer 0 Explorer 0 Win Type - Total 27 Types 19/2/3/1/1/0/0/1/0 Lore% 87 Gallery% 88 Achievement% 84 Wizard Run 0 Options --------- Layout 0 ASCII 0 Keyboard 1 Movement Numpad Keybinds 0 Fullscreen 2 Font 18/SmallcapsGlow Map View 76x50 Zoom Use 0% Tactical HUD 1 Map Filters NONE Filters NONE Steam 1 RUN: ba54fd83-6f24-45ed-959d-cbd2087a3cf7